[Event "Titled Tuesday Blitz March 28 Early 2023"]
[White "Hansen, Eric"]
[Black "Andreikin, Dmitry"]
[WhiteFideId "2606771"]
[BlackFideId "4158814"]
[WhiteElo "2569"]
[BlackElo "2736"]
[Result "0-1"]
[Round "06"]
[TimeControl "180+2"]
[Date "2023.03.28"]
[WhiteClock "0:00:02"]
[BlackClock "0:00:16"]

1. e4 {[%clk 0:02:55]}  e6 {[%clk 0:02:57]} 2. d4 {[%clk 0:02:47]}  d5 {[%clk 0:02:57]} 3. Nd2 {[%clk 0:02:48]}  h6 {[%clk 0:02:50]} 4. Ngf3 {[%clk 0:02:40]}  Nf6 {[%clk 0:02:50]} 5. Bd3 {[%clk 0:02:38]}  c5 {[%clk 0:02:48]} 6. exd5 {[%clk 0:02:20]}  exd5 {[%clk 0:02:48]} 7. O-O {[%clk 0:02:19]}  c4 {[%clk 0:02:43]} 8. Re1+ {[%clk 0:02:19]}  Be7 {[%clk 0:02:43]} 9. Bf1 {[%clk 0:02:20]}  O-O {[%clk 0:02:34]} 10. c3 {[%clk 0:02:20]}  Nc6 {[%clk 0:02:22]} 11. b3 {[%clk 0:02:20]}  b5 {[%clk 0:02:11]} 12. a4 {[%clk 0:02:18]}  b4 {[%clk 0:02:11]} 13. Bb2 {[%clk 0:02:12]}  cxb3 {[%clk 0:02:09]} 14. Bb5 {[%clk 0:01:25]}  Na5 {[%clk 0:01:52]} 15. Ne5 {[%clk 0:01:15]}  a6 {[%clk 0:01:35]} 16. Nxb3 {[%clk 0:01:09]}  Nxb3 {[%clk 0:00:55]} 17. Nc6 {[%clk 0:00:58]}  axb5 {[%clk 0:00:48]} 18. Nxd8 {[%clk 0:00:48]}  Nxa1 {[%clk 0:00:49]} 19. Nc6 {[%clk 0:00:45]}  Bd6 {[%clk 0:00:47]} 20. axb5 {[%clk 0:00:32]}  bxc3 {[%clk 0:00:22]} 21. Bxc3 {[%clk 0:00:30]}  Bd7 {[%clk 0:00:20]} 22. Bxa1 {[%clk 0:00:27]}  Rfc8 {[%clk 0:00:21]} 23. Ne7+ {[%clk 0:00:14]}  Bxe7 {[%clk 0:00:20]} 24. Rxe7 {[%clk 0:00:15]}  Bxb5 {[%clk 0:00:20]} 25. h3 {[%clk 0:00:15]}  Ra2 {[%clk 0:00:18]} 26. Qe1 {[%clk 0:00:12]}  Rcc2 {[%clk 0:00:17]} 27. Bc3 {[%clk 0:00:05]}  Ne4 {[%clk 0:00:17]} 28. Bb4 {[%clk 0:00:03]}  Rxf2 {[%clk 0:00:16]} 29. Rxe4 {[%clk 0:00:02]}  Rxg2+ {[%clk 0:00:16]} 0-1


[Site "https://www.chess.com"]

[Event "Titled Tuesday Blitz March 28 Early 2023"]
[White "Shimanov, Aleksandr"]
[Black "Bluebaum, Matthias"]
[WhiteFideId "4198603"]
[BlackFideId "24651516"]
[WhiteElo "2631"]
[BlackElo "2638"]
[Result "1-0"]
[Round "06"]
[TimeControl "180+2"]
[Date "2023.03.28"]
[WhiteClock "0:00:14"]
[BlackClock "0:00:04"]

1. b3 {[%clk 0:03:00]}  d5 {[%clk 0:02:59]} 2. Bb2 {[%clk 0:02:59]}  c5 {[%clk 0:03:00]} 3. e3 {[%clk 0:02:59]}  a6 {[%clk 0:03:00]} 4. Nf3 {[%clk 0:02:57]}  Nc6 {[%clk 0:03:01]} 5. Be2 {[%clk 0:02:54]}  Nf6 {[%clk 0:02:56]} 6. O-O {[%clk 0:02:49]}  Bf5 {[%clk 0:02:53]} 7. Nh4 {[%clk 0:02:40]}  Bg6 {[%clk 0:02:47]} 8. c4 {[%clk 0:02:34]}  d4 {[%clk 0:02:46]} 9. e4 {[%clk 0:02:23]}  Bxe4 {[%clk 0:02:39]} 10. d3 {[%clk 0:02:20]}  Bg6 {[%clk 0:02:39]} 11. Bf3 {[%clk 0:02:19]}  Qd7 {[%clk 0:02:33]} 12. Re1 {[%clk 0:02:18]}  e6 {[%clk 0:02:33]} 13. Nxg6 {[%clk 0:02:16]}  hxg6 {[%clk 0:02:34]} 14. Nd2 {[%clk 0:02:15]}  Bd6 {[%clk 0:02:32]} 15. g3 {[%clk 0:02:15]}  Ne5 {[%clk 0:02:28]} 16. Be2 {[%clk 0:02:13]}  g5 {[%clk 0:02:10]} 17. Nf3 {[%clk 0:02:10]}  Nxf3+ {[%clk 0:01:48]} 18. Bxf3 {[%clk 0:02:11]}  e5 {[%clk 0:01:46]} 19. Bg2 {[%clk 0:02:06]}  g4 {[%clk 0:01:43]} 20. b4 {[%clk 0:02:04]}  Qc7 {[%clk 0:01:12]} 21. bxc5 {[%clk 0:02:00]}  Bxc5 {[%clk 0:01:13]} 22. Qe2 {[%clk 0:01:58]}  Rh5 {[%clk 0:01:11]} 23. Rab1 {[%clk 0:01:53]}  Kf8 {[%clk 0:01:07]} 24. Bc1 {[%clk 0:01:20]}  Rb8 {[%clk 0:01:07]} 25. f3 {[%clk 0:01:17]}  Qd7 {[%clk 0:00:20]} 26. fxg4 {[%clk 0:01:10]}  Nxg4 {[%clk 0:00:21]} 27. h3 {[%clk 0:01:01]}  Nf6 {[%clk 0:00:19]} 28. g4 {[%clk 0:01:01]}  Rh8 {[%clk 0:00:13]} 29. Qxe5 {[%clk 0:01:00]}  Bd6 {[%clk 0:00:13]} 30. Qg5 {[%clk 0:00:50]}  Qc7 {[%clk 0:00:10]} 31. Rf1 {[%clk 0:00:37]}  Bh2+ {[%clk 0:00:05]} 32. Kh1 {[%clk 0:00:38]}  Bg3 {[%clk 0:00:06]} 33. Ba3+ {[%clk 0:00:35]}  Kg8 {[%clk 0:00:06]} 34. Rxf6 {[%clk 0:00:30]}  Bh4 {[%clk 0:00:02]} 35. Qf4 {[%clk 0:00:30]}  Qd7 {[%clk 0:00:02]} 36. Qxb8+ {[%clk 0:00:29]}  Kh7 {[%clk 0:00:03]} 37. Be4+ {[%clk 0:00:29]}  g6 {[%clk 0:00:03]} 38. Qf4 {[%clk 0:00:26]}  Kg8 {[%clk 0:00:03]} 39. Kg2 {[%clk 0:00:21]}  Bxf6 {[%clk 0:00:03]} 40. Qxf6 {[%clk 0:00:22]}  Rh7 {[%clk 0:00:04]} 41. Bd5 {[%clk 0:00:21]}  Rh5 {[%clk 0:00:02]} 42. Qxg6+ {[%clk 0:00:16]}  Kh8 {[%clk 0:00:01]} 43. Qxh5+ {[%clk 0:00:17]}  Kg7 {[%clk 0:00:02]} 44. Qg5+ {[%clk 0:00:16]}  Kh7 {[%clk 0:00:02]} 45. Rxb7 {[%clk 0:00:15]}  Qxd5+ {[%clk 0:00:02]} 46. cxd5 {[%clk 0:00:14]}  a5 {[%clk 0:00:03]} 47. Rxf7+ {[%clk 0:00:14]}  Kh8 {[%clk 0:00:04]} 48. Qg7# {[%clk 0:00:14]} 1-0


[Site "https://www.chess.com"]

[Event "Titled Tuesday Blitz March 28 Early 2023"]
[White "Danielyan, Vahe"]
[Black "Gholami Orimi, Mahdi"]
[WhiteFideId "13304828"]
[BlackFideId "12558486"]
[WhiteElo "2423"]
[BlackElo "2363"]
[Result "0-1"]
[Round "06"]
[TimeControl "180+2"]
[Date "2023.03.28"]
[WhiteClock "0:00:21"]
[BlackClock "0:00:23"]

1. e4 {[%clk 0:03:00]}  e5 {[%clk 0:02:57]} 2. Nf3 {[%clk 0:03:00]}  Nc6 {[%clk 0:02:58]} 3. Nc3 {[%clk 0:02:55]}  Nf6 {[%clk 0:02:58]} 4. Bb5 {[%clk 0:02:54]}  Bb4 {[%clk 0:02:56]} 5. O-O {[%clk 0:02:52]}  O-O {[%clk 0:02:52]} 6. d3 {[%clk 0:02:51]}  d6 {[%clk 0:02:51]} 7. Bg5 {[%clk 0:02:49]}  Ne7 {[%clk 0:02:49]} 8. Bc4 {[%clk 0:02:40]}  c6 {[%clk 0:02:42]} 9. Re1 {[%clk 0:02:20]}  Ng6 {[%clk 0:02:41]} 10. Nh4 {[%clk 0:02:13]}  Kh8 {[%clk 0:02:37]} 11. Qf3 {[%clk 0:02:01]}  h6 {[%clk 0:02:27]} 12. Bxf6 {[%clk 0:01:58]}  Qxf6 {[%clk 0:02:28]} 13. Qxf6 {[%clk 0:01:53]}  gxf6 {[%clk 0:02:28]} 14. Nf3 {[%clk 0:01:41]}  Bg4 {[%clk 0:02:22]} 15. Nd2 {[%clk 0:01:32]}  Rad8 {[%clk 0:02:21]} 16. a3 {[%clk 0:01:30]}  Ba5 {[%clk 0:02:21]} 17. b4 {[%clk 0:01:26]}  Bb6 {[%clk 0:02:20]} 18. Bb3 {[%clk 0:01:26]}  Bd4 {[%clk 0:02:19]} 19. Ndb1 {[%clk 0:01:23]}  Nf4 {[%clk 0:02:20]} 20. Ra2 {[%clk 0:01:21]}  Rg8 {[%clk 0:02:19]} 21. Kf1 {[%clk 0:01:05]}  Nxg2 {[%clk 0:00:52]} 22. Kxg2 {[%clk 0:01:00]}  Be2+ {[%clk 0:00:52]} 23. Kh3 {[%clk 0:01:00]}  Bf3 {[%clk 0:00:52]} 24. Nd1 {[%clk 0:00:35]}  Rg5 {[%clk 0:00:29]} 25. Bxf7 {[%clk 0:00:34]}  Rd7 {[%clk 0:00:27]} 26. Be6 {[%clk 0:00:33]}  Rdg7 {[%clk 0:00:27]} 27. Bf7 {[%clk 0:00:25]}  Rxf7 {[%clk 0:00:26]} 28. Nd2 {[%clk 0:00:24]}  Bxd1 {[%clk 0:00:21]} 29. Rxd1 {[%clk 0:00:23]}  Rfg7 {[%clk 0:00:21]} 30. Nf3 {[%clk 0:00:22]}  Rh5+ {[%clk 0:00:22]} 31. Nh4 {[%clk 0:00:21]}  Bxf2 {[%clk 0:00:23]} 0-1


[Site "https://www.chess.com"]

[Event "Titled Tuesday Blitz March 28 Early 2023"]
[White "Kollars, Dmitrij"]
[Black "Harsha Bharathakoti"]
[WhiteFideId "12909572"]
[BlackFideId "5078776"]
[WhiteElo "2584"]
[BlackElo "2481"]
[Result "0-1"]
[Round "06"]
[TimeControl "180+2"]
[Date "2023.03.28"]
[WhiteClock "0:00:04"]
[BlackClock "0:00:18"]

1. e4 {[%clk 0:03:00]}  e6 {[%clk 0:02:57]} 2. d4 {[%clk 0:03:00]}  d5 {[%clk 0:02:57]} 3. Nc3 {[%clk 0:03:00]}  Be7 {[%clk 0:02:57]} 4. Nf3 {[%clk 0:02:58]}  Nf6 {[%clk 0:02:58]} 5. Bd3 {[%clk 0:02:58]}  c5 {[%clk 0:02:58]} 6. exd5 {[%clk 0:02:58]}  cxd4 {[%clk 0:02:49]} 7. Nxd4 {[%clk 0:02:55]}  exd5 {[%clk 0:02:47]} 8. O-O {[%clk 0:02:54]}  O-O {[%clk 0:02:46]} 9. Re1 {[%clk 0:02:50]}  Nc6 {[%clk 0:02:46]} 10. Nf5 {[%clk 0:02:46]}  Bxf5 {[%clk 0:02:36]} 11. Bxf5 {[%clk 0:02:47]}  Re8 {[%clk 0:02:36]} 12. Bg5 {[%clk 0:02:36]}  d4 {[%clk 0:02:31]} 13. Bxf6 {[%clk 0:02:04]}  Bxf6 {[%clk 0:02:29]} 14. Ne4 {[%clk 0:01:50]}  g6 {[%clk 0:02:06]} 15. Nxf6+ {[%clk 0:01:29]}  Qxf6 {[%clk 0:02:07]} 16. Be4 {[%clk 0:01:30]}  Re5 {[%clk 0:01:41]} 17. Bxc6 {[%clk 0:01:03]}  Rxe1+ {[%clk 0:01:35]} 18. Qxe1 {[%clk 0:01:04]}  Qxc6 {[%clk 0:01:36]} 19. Qd2 {[%clk 0:01:02]}  Rc8 {[%clk 0:01:33]} 20. Rc1 {[%clk 0:01:00]}  Qc4 {[%clk 0:01:30]} 21. h3 {[%clk 0:00:45]}  d3 {[%clk 0:01:25]} 22. c3 {[%clk 0:00:41]}  Re8 {[%clk 0:01:21]} 23. b3 {[%clk 0:00:35]}  Qd5 {[%clk 0:01:12]} 24. Rd1 {[%clk 0:00:32]}  Re2 {[%clk 0:01:08]} 25. Qf4 {[%clk 0:00:32]}  d2 {[%clk 0:01:04]} 26. Kh2 {[%clk 0:00:29]}  Qd3 {[%clk 0:00:57]} 27. Qc4 {[%clk 0:00:20]}  Qd6+ {[%clk 0:00:40]} 28. f4 {[%clk 0:00:16]}  Re1 {[%clk 0:00:39]} 29. Qc8+ {[%clk 0:00:05]}  Kg7 {[%clk 0:00:38]} 30. Qg4 {[%clk 0:00:06]}  h5 {[%clk 0:00:24]} 31. Qf3 {[%clk 0:00:04]}  Rxd1 {[%clk 0:00:22]} 32. Qxd1 {[%clk 0:00:05]}  Qxf4+ {[%clk 0:00:23]} 33. Kg1 {[%clk 0:00:06]}  Qe3+ {[%clk 0:00:21]} 34. Kf1 {[%clk 0:00:06]}  Qxc3 {[%clk 0:00:22]} 35. Ke2 {[%clk 0:00:05]}  Qc1 {[%clk 0:00:16]} 36. Qxd2 {[%clk 0:00:04]}  Qxd2+ {[%clk 0:00:17]} 37. Kxd2 {[%clk 0:00:04]}  Kf6 {[%clk 0:00:18]} 38. Ke3 {[%clk 0:00:04]}  Ke5 {[%clk 0:00:18]} 0-1


[Site "https://www.chess.com"]

[Event "Titled Tuesday Blitz March 28 Early 2023"]
[White "Vidit, Santosh Gujrathi"]
[Black "Salinas Herrera, Pablo"]
[WhiteFideId "5029465"]
[BlackFideId "3407128"]
[WhiteElo "2651"]
[BlackElo "2550"]
[Result "1-0"]
[Round "06"]
[TimeControl "180+2"]
[Date "2023.03.28"]
[WhiteClock "0:00:34"]
[BlackClock "0:00:20"]

1. e4 {[%clk 0:03:00]}  c5 {[%clk 0:02:59]} 2. Nf3 {[%clk 0:03:00]}  e6 {[%clk 0:03:00]} 3. Nc3 {[%clk 0:03:00]}  a6 {[%clk 0:02:59]} 4. d4 {[%clk 0:02:54]}  cxd4 {[%clk 0:03:00]} 5. Qxd4 {[%clk 0:02:53]}  Nc6 {[%clk 0:02:56]} 6. Qe3 {[%clk 0:02:52]}  d6 {[%clk 0:02:55]} 7. Be2 {[%clk 0:02:49]}  Nf6 {[%clk 0:02:55]} 8. O-O {[%clk 0:02:49]}  Be7 {[%clk 0:02:56]} 9. Rd1 {[%clk 0:02:48]}  Qc7 {[%clk 0:02:56]} 10. a4 {[%clk 0:02:45]}  O-O {[%clk 0:02:55]} 11. Bd2 {[%clk 0:02:44]}  b6 {[%clk 0:02:53]} 12. h3 {[%clk 0:02:42]}  Bb7 {[%clk 0:02:53]} 13. Qf4 {[%clk 0:02:39]}  Rac8 {[%clk 0:02:49]} 14. Qg3 {[%clk 0:02:37]}  Nb4 {[%clk 0:02:39]} 15. Bh6 {[%clk 0:02:27]}  Ne8 {[%clk 0:02:38]} 16. Rd2 {[%clk 0:02:24]}  d5 {[%clk 0:02:29]} 17. e5 {[%clk 0:02:22]}  f5 {[%clk 0:01:58]} 18. Nd4 {[%clk 0:02:11]}  Qd7 {[%clk 0:01:58]} 19. h4 {[%clk 0:02:08]}  Nc6 {[%clk 0:01:54]} 20. Bh5 {[%clk 0:01:55]}  Bxh4 {[%clk 0:01:43]} 21. Qxh4 {[%clk 0:01:50]}  gxh6 {[%clk 0:01:43]} 22. Nxc6 {[%clk 0:01:25]}  Rxc6 {[%clk 0:01:40]} 23. Ne2 {[%clk 0:01:23]}  Ng7 {[%clk 0:01:16]} 24. Bf3 {[%clk 0:01:23]}  Qc7 {[%clk 0:01:13]} 25. Nd4 {[%clk 0:01:21]}  Rc4 {[%clk 0:01:13]} 26. Be2 {[%clk 0:01:14]}  Qxe5 {[%clk 0:01:00]} 27. Bxc4 {[%clk 0:01:13]}  dxc4 {[%clk 0:01:00]} 28. Re2 {[%clk 0:01:04]}  Be4 {[%clk 0:00:51]} 29. c3 {[%clk 0:00:55]}  Qf6 {[%clk 0:00:50]} 30. Qxf6 {[%clk 0:00:53]}  Rxf6 {[%clk 0:00:51]} 31. f3 {[%clk 0:00:52]}  Bd5 {[%clk 0:00:51]} 32. Rd1 {[%clk 0:00:45]}  h5 {[%clk 0:00:50]} 33. Nc2 {[%clk 0:00:44]}  Bc6 {[%clk 0:00:44]} 34. Rd6 {[%clk 0:00:39]}  Bxa4 {[%clk 0:00:43]} 35. Rxb6 {[%clk 0:00:38]}  Bxc2 {[%clk 0:00:30]} 36. Rxc2 {[%clk 0:00:39]}  f4 {[%clk 0:00:31]} 37. Re2 {[%clk 0:00:39]}  Kf7 {[%clk 0:00:30]} 38. Re4 {[%clk 0:00:38]}  e5 {[%clk 0:00:20]} 39. Rxf6+ {[%clk 0:00:36]}  Kxf6 {[%clk 0:00:20]} 40. Rxc4 {[%clk 0:00:37]}  h4 {[%clk 0:00:20]} 41. Rc6+ {[%clk 0:00:37]}  Kf5 {[%clk 0:00:21]} 42. Rxa6 {[%clk 0:00:36]}  Ne6 {[%clk 0:00:20]} 43. b4 {[%clk 0:00:36]}  Ng5 {[%clk 0:00:20]} 44. b5 {[%clk 0:00:33]}  h3 {[%clk 0:00:20]} 45. b6 {[%clk 0:00:34]}  e4 {[%clk 0:00:20]} 46. fxe4+ {[%clk 0:00:34]} 1-0


[Site "https://www.chess.com"]

[Event "Titled Tuesday Blitz March 28 Early 2023"]
[White "Wei, Yi"]
[Black "Chigaev, Maksim"]
[WhiteFideId "8603405"]
[BlackFideId "4108116"]
[WhiteElo "2686"]
[BlackElo "2547"]
[Result "0-1"]
[Round "06"]
[TimeControl "180+2"]
[Date "2023.03.28"]
[WhiteClock "0:00:06"]
[BlackClock "0:00:08"]

1. c4 {[%clk 0:02:58]}  e5 {[%clk 0:02:57]} 2. g3 {[%clk 0:02:57]}  Nc6 {[%clk 0:02:49]} 3. Bg2 {[%clk 0:02:56]}  g6 {[%clk 0:02:50]} 4. Nc3 {[%clk 0:02:55]}  Bg7 {[%clk 0:02:50]} 5. Rb1 {[%clk 0:02:55]}  a5 {[%clk 0:02:47]} 6. a3 {[%clk 0:02:54]}  d6 {[%clk 0:02:47]} 7. b4 {[%clk 0:02:53]}  axb4 {[%clk 0:02:46]} 8. axb4 {[%clk 0:02:54]}  f5 {[%clk 0:02:46]} 9. b5 {[%clk 0:02:33]}  Nce7 {[%clk 0:02:45]} 10. e3 {[%clk 0:02:30]}  Nf6 {[%clk 0:02:42]} 11. Nge2 {[%clk 0:02:30]}  O-O {[%clk 0:02:43]} 12. O-O {[%clk 0:02:30]}  c6 {[%clk 0:02:40]} 13. d3 {[%clk 0:02:18]}  h6 {[%clk 0:02:37]} 14. e4 {[%clk 0:01:58]}  g5 {[%clk 0:02:27]} 15. exf5 {[%clk 0:01:41]}  Bxf5 {[%clk 0:02:27]} 16. Rb3 {[%clk 0:01:38]}  Qd7 {[%clk 0:02:18]} 17. d4 {[%clk 0:01:23]}  e4 {[%clk 0:02:10]} 18. bxc6 {[%clk 0:01:23]}  bxc6 {[%clk 0:02:11]} 19. d5 {[%clk 0:01:23]}  c5 {[%clk 0:02:06]} 20. Bb2 {[%clk 0:01:21]}  Ng6 {[%clk 0:01:36]} 21. Nb5 {[%clk 0:01:16]}  Bh3 {[%clk 0:01:36]} 22. f4 {[%clk 0:01:01]}  exf3 {[%clk 0:00:56]} 23. Rbxf3 {[%clk 0:00:59]}  Bxg2 {[%clk 0:00:56]} 24. Kxg2 {[%clk 0:00:59]}  Ng4 {[%clk 0:00:53]} 25. Qb1 {[%clk 0:00:34]}  Rxf3 {[%clk 0:00:40]} 26. Rxf3 {[%clk 0:00:34]}  N6e5 {[%clk 0:00:38]} 27. Bxe5 {[%clk 0:00:30]}  Nxe5 {[%clk 0:00:39]} 28. Rc3 {[%clk 0:00:24]}  Rf8 {[%clk 0:00:33]} 29. Ng1 {[%clk 0:00:15]}  h5 {[%clk 0:00:17]} 30. Qe4 {[%clk 0:00:12]}  Qf7 {[%clk 0:00:14]} 31. Kh1 {[%clk 0:00:12]}  Ng4 {[%clk 0:00:13]} 32. Rf3 {[%clk 0:00:08]}  Nf2+ {[%clk 0:00:13]} 33. Rxf2 {[%clk 0:00:09]}  Qxf2 {[%clk 0:00:14]} 34. Nxd6 {[%clk 0:00:09]}  Qf6 {[%clk 0:00:07]} 35. Ne8 {[%clk 0:00:06]}  Qe5 {[%clk 0:00:08]} 0-1


[Site "https://www.chess.com"]

[Event "Titled Tuesday Blitz March 28 Early 2023"]
[White "Sarana, Alexey"]
[Black "Kovalev, Vladislav"]
[WhiteFideId "24133795"]
[BlackFideId "13504398"]
[WhiteElo "2714"]
[BlackElo "2555"]
[Result "1-0"]
[Round "06"]
[TimeControl "180+2"]
[Date "2023.03.28"]
[WhiteClock "0:00:03"]
[BlackClock "0:00:01"]

1. d4 {[%clk 0:01:40]}  Nf6 {[%clk 0:02:59]} 2. c4 {[%clk 0:01:40]}  g6 {[%clk 0:02:57]} 3. Nc3 {[%clk 0:01:40]}  Bg7 {[%clk 0:02:58]} 4. e4 {[%clk 0:01:40]}  d6 {[%clk 0:02:59]} 5. Be2 {[%clk 0:01:41]}  O-O {[%clk 0:02:59]} 6. Be3 {[%clk 0:01:42]}  a5 {[%clk 0:02:51]} 7. Nf3 {[%clk 0:01:41]}  a4 {[%clk 0:02:50]} 8. O-O {[%clk 0:01:40]}  a3 {[%clk 0:02:48]} 9. b3 {[%clk 0:01:39]}  c5 {[%clk 0:02:46]} 10. Qc2 {[%clk 0:01:38]}  Na6 {[%clk 0:02:43]} 11. Rad1 {[%clk 0:01:38]}  Qa5 {[%clk 0:02:39]} 12. h3 {[%clk 0:01:33]}  Nb4 {[%clk 0:02:28]} 13. Qb1 {[%clk 0:01:33]}  b6 {[%clk 0:02:06]} 14. Rfe1 {[%clk 0:01:27]}  Bb7 {[%clk 0:01:51]} 15. d5 {[%clk 0:01:17]}  Nd7 {[%clk 0:01:41]} 16. Bd2 {[%clk 0:01:16]}  Ne5 {[%clk 0:01:25]} 17. Nxe5 {[%clk 0:01:10]}  Bxe5 {[%clk 0:01:26]} 18. Nb5 {[%clk 0:01:04]}  Bb2 {[%clk 0:01:24]} 19. Kh2 {[%clk 0:01:01]}  Ba6 {[%clk 0:01:16]} 20. f4 {[%clk 0:01:00]}  Bxb5 {[%clk 0:01:15]} 21. cxb5 {[%clk 0:01:01]}  Qa7 {[%clk 0:01:02]} 22. Bc4 {[%clk 0:01:02]}  Qc7 {[%clk 0:01:00]} 23. Re2 {[%clk 0:01:02]}  Rae8 {[%clk 0:00:56]} 24. Rf1 {[%clk 0:00:59]}  e6 {[%clk 0:00:40]} 25. dxe6 {[%clk 0:00:58]}  fxe6 {[%clk 0:00:41]} 26. Bxb4 {[%clk 0:00:51]}  cxb4 {[%clk 0:00:41]} 27. Qd3 {[%clk 0:00:51]}  Kg7 {[%clk 0:00:34]} 28. h4 {[%clk 0:00:51]}  d5 {[%clk 0:00:19]} 29. exd5 {[%clk 0:00:51]}  Rxf4 {[%clk 0:00:12]} 30. Rxf4 {[%clk 0:00:23]}  Qxf4+ {[%clk 0:00:13]} 31. g3 {[%clk 0:00:24]}  Qd6 {[%clk 0:00:10]} 32. dxe6 {[%clk 0:00:21]}  Qxd3 {[%clk 0:00:10]} 33. Bxd3 {[%clk 0:00:21]}  Kf6 {[%clk 0:00:10]} 34. Bc4 {[%clk 0:00:21]}  Ke7 {[%clk 0:00:11]} 35. Kh3 {[%clk 0:00:18]}  Bc3 {[%clk 0:00:10]} 36. Kg4 {[%clk 0:00:17]}  Rd8 {[%clk 0:00:10]} 37. Rf2 {[%clk 0:00:15]}  Bf6 {[%clk 0:00:11]} 38. Kh3 {[%clk 0:00:12]}  Rd1 {[%clk 0:00:10]} 39. g4 {[%clk 0:00:09]}  h6 {[%clk 0:00:10]} 40. g5 {[%clk 0:00:08]}  hxg5 {[%clk 0:00:10]} 41. hxg5 {[%clk 0:00:09]}  Bxg5 {[%clk 0:00:11]} 42. Rf7+ {[%clk 0:00:10]}  Kd8 {[%clk 0:00:12]} 43. Rb7 {[%clk 0:00:06]}  Rd2 {[%clk 0:00:09]} 44. Rxb6 {[%clk 0:00:04]}  Rxa2 {[%clk 0:00:09]} 45. Ra6 {[%clk 0:00:04]}  Ra1 {[%clk 0:00:03]} 46. b6 {[%clk 0:00:03]}  a2 {[%clk 0:00:04]} 47. b7 {[%clk 0:00:02]}  Kc7 {[%clk 0:00:03]} 48. Ra7 {[%clk 0:00:01]}  Rh1+ {[%clk 0:00:02]} 49. Kg4 {[%clk 0:00:01]}  a1=Q {[%clk 0:00:02]} 50. Rxa1 {[%clk 0:00:02]}  Rxa1 {[%clk 0:00:03]} 51. Kxg5 {[%clk 0:00:03]}  Kxb7 {[%clk 0:00:01]} 52. e7 {[%clk 0:00:03]}  Re1 {[%clk 0:00:01]} 53. Kf6 {[%clk 0:00:04]}  g5 {[%clk 0:00:01]} 54. Bb5 {[%clk 0:00:03]} 1-0


[Site "https://www.chess.com"]

[Event "Titled Tuesday Blitz March 28 Early 2023"]
[White "demon64fields"]
[Black "Sadhwani, Raunak"]
[BlackFideId "35093487"]
[WhiteElo "2858"]
[BlackElo "2631"]
[Result "1/2-1/2"]
[Round "06"]
[TimeControl "180+2"]
[Date "2023.03.28"]
[WhiteClock "0:00:05"]
[BlackClock "0:00:05"]

1. Nf3 {[%clk 0:03:00]}  d5 {[%clk 0:02:58]} 2. g3 {[%clk 0:03:00]}  Nc6 {[%clk 0:02:58]} 3. d4 {[%clk 0:03:00]}  Bf5 {[%clk 0:02:58]} 4. Bg2 {[%clk 0:03:00]}  Nb4 {[%clk 0:02:58]} 5. Na3 {[%clk 0:03:00]}  e6 {[%clk 0:02:58]} 6. O-O {[%clk 0:03:00]}  Be7 {[%clk 0:02:59]} 7. c3 {[%clk 0:03:00]}  Nc6 {[%clk 0:02:59]} 8. Qb3 {[%clk 0:03:01]}  Rb8 {[%clk 0:02:58]} 9. Qa4 {[%clk 0:03:01]}  Qd7 {[%clk 0:02:58]} 10. Bf4 {[%clk 0:02:59]}  Nf6 {[%clk 0:02:57]} 11. Nb5 {[%clk 0:02:58]}  O-O {[%clk 0:02:49]} 12. Nxc7 {[%clk 0:02:31]}  a6 {[%clk 0:02:31]} 13. Nxd5 {[%clk 0:02:06]}  exd5 {[%clk 0:02:24]} 14. Bxb8 {[%clk 0:02:06]}  Rxb8 {[%clk 0:02:25]} 15. Rac1 {[%clk 0:01:58]}  Be4 {[%clk 0:02:18]} 16. Nd2 {[%clk 0:01:53]}  Bxg2 {[%clk 0:02:09]} 17. Kxg2 {[%clk 0:01:54]}  h5 {[%clk 0:02:08]} 18. h4 {[%clk 0:01:46]}  Re8 {[%clk 0:02:07]} 19. Rfe1 {[%clk 0:01:45]}  Qf5 {[%clk 0:02:00]} 20. Qc2 {[%clk 0:01:42]}  Qd7 {[%clk 0:01:31]} 21. e4 {[%clk 0:01:38]}  dxe4 {[%clk 0:01:32]} 22. Nxe4 {[%clk 0:01:38]}  Ng4 {[%clk 0:01:20]} 23. Nd2 {[%clk 0:01:29]}  Rc8 {[%clk 0:01:13]} 24. Qe4 {[%clk 0:01:08]}  Bf6 {[%clk 0:01:12]} 25. Qf3 {[%clk 0:01:03]}  b5 {[%clk 0:00:56]} 26. Ne4 {[%clk 0:01:03]}  Be7 {[%clk 0:00:56]} 27. Rcd1 {[%clk 0:01:01]}  Rf8 {[%clk 0:00:45]} 28. b4 {[%clk 0:01:01]}  Qc8 {[%clk 0:00:25]} 29. Nc5 {[%clk 0:00:59]}  Bd6 {[%clk 0:00:25]} 30. Qd5 {[%clk 0:00:56]}  Bxc5 {[%clk 0:00:25]} 31. bxc5 {[%clk 0:00:55]}  g6 {[%clk 0:00:25]} 32. Qe4 {[%clk 0:00:44]}  Nf6 {[%clk 0:00:15]} 33. Qf3 {[%clk 0:00:44]}  Kg7 {[%clk 0:00:16]} 34. d5 {[%clk 0:00:39]}  Na5 {[%clk 0:00:16]} 35. c6 {[%clk 0:00:39]}  Qc7 {[%clk 0:00:17]} 36. Rd4 {[%clk 0:00:30]}  Rd8 {[%clk 0:00:15]} 37. Red1 {[%clk 0:00:29]}  Rd6 {[%clk 0:00:15]} 38. a4 {[%clk 0:00:28]}  Nc4 {[%clk 0:00:16]} 39. axb5 {[%clk 0:00:26]}  axb5 {[%clk 0:00:16]} 40. Qf4 {[%clk 0:00:22]}  Qd8 {[%clk 0:00:13]} 41. Qf3 {[%clk 0:00:19]}  Qc7 {[%clk 0:00:13]} 42. Rb1 {[%clk 0:00:17]}  Nb6 {[%clk 0:00:06]} 43. Rxb5 {[%clk 0:00:17]}  Nbxd5 {[%clk 0:00:06]} 44. Rbxd5 {[%clk 0:00:17]}  Nxd5 {[%clk 0:00:07]} 45. Rxd5 {[%clk 0:00:17]}  Rxc6 {[%clk 0:00:08]} 46. Rd3 {[%clk 0:00:16]}  Rc4 {[%clk 0:00:08]} 47. Qd5 {[%clk 0:00:15]}  Kg8 {[%clk 0:00:04]} 48. Qd8+ {[%clk 0:00:15]}  Qxd8 {[%clk 0:00:05]} 49. Rxd8+ {[%clk 0:00:15]}  Kg7 {[%clk 0:00:05]} 50. Rd3 {[%clk 0:00:16]}  f6 {[%clk 0:00:06]} 51. Kf3 {[%clk 0:00:17]}  g5 {[%clk 0:00:06]} 52. hxg5 {[%clk 0:00:14]}  fxg5 {[%clk 0:00:07]} 53. Ke2 {[%clk 0:00:13]}  Kg6 {[%clk 0:00:07]} 54. Re3 {[%clk 0:00:12]}  h4 {[%clk 0:00:06]} 55. gxh4 {[%clk 0:00:12]}  gxh4 {[%clk 0:00:07]} 56. Kd3 {[%clk 0:00:13]}  Rf4 {[%clk 0:00:06]} 57. Re4 {[%clk 0:00:04]}  Rf3+ {[%clk 0:00:03]} 58. Re3 {[%clk 0:00:02]}  Rxf2 {[%clk 0:00:03]} 59. c4 {[%clk 0:00:03]}  Kg5 {[%clk 0:00:03]} 60. c5 {[%clk 0:00:03]}  Rf6 {[%clk 0:00:03]} 61. Kd4 {[%clk 0:00:03]}  Kf4 {[%clk 0:00:03]} 62. Re4+ {[%clk 0:00:03]}  Kg3 {[%clk 0:00:04]} 63. Kd5 {[%clk 0:00:03]}  h3 {[%clk 0:00:04]} 64. Re1 {[%clk 0:00:03]}  h2 {[%clk 0:00:04]} 65. c6 {[%clk 0:00:04]}  Rxc6 {[%clk 0:00:04]} 66. Kxc6 {[%clk 0:00:04]}  Kg2 {[%clk 0:00:05]} 67. Re2+ {[%clk 0:00:04]}  Kg1 {[%clk 0:00:05]} 68. Rxh2 {[%clk 0:00:05]}  Kxh2 {[%clk 0:00:05]} 1/2-1/2


[Site "https://www.chess.com"]